[Event "Polish University-ch Teams 2024"]
[Site "Lublin"]
[Date "2024.02.25"]
[Round "9.21"]
[White "Brzezinski, Mateusz"]
[Black "Galuszka, Tomasz"]
[Result "0-1"]
[ECO "D02"]
[WhiteElo "2176"]
[BlackElo "2181"]
[Annotator "RC"]
[PlyCount "140"]
[EventDate "2024.02.22"]
[EventType "team-tourn"]
[EventCountry "POL"]
[SourceTitle "playchess.com"]
[Source "ChessBase"]
[SourceQuality "1"]
[TimeControl "900+5"]

1. d4 {[%emt 0:00:01]} d5 {[%emt 0:00:01]} 2. Nf3 {[%emt 0:00:01]} Nf6 {[%emt 0:00:02]} 3. c3 {[%emt 0:00:01]} Bf5 {[%emt 0:00:10]} 4. Bf4 {[%emt 0:00:12]} e6 {[%emt 0:00:07]} 5. e3 {[%emt 0:00:06]} Bd6 {[%emt 0:00:11]} 6. Nbd2 {[%emt 0:00:08]} O-O {[%emt 0:00:09]} 7. Bg3 {[%emt 0:00:08]} h6 {[%emt 0:00:07]} 8. Ne5 {[%emt 0:00:05]} Nfd7 {[%emt 0:00:07]} 9. Be2 {[%emt 0:00:22]} Nxe5 {[%emt 0:00:16]} 10. dxe5 {[%emt 0:00:11]} Bc5 {[%emt 0:00:12]} 11. O-O {[%emt 0:00:04]} Bb6 {[%emt 0:01:01]} 12. a4 {[%emt 0:01:25]} a6 {[%emt 0:00:37]} 13. a5 {[%emt 0:01:58]} Ba7 {[%emt 0:00:03]} 14. Qb3 {[%emt 0:00:05]} Qc8 {[%emt 0:00:25]} 15. c4 {[%emt 0:11:33]} dxc4 {[%emt 0:02:28]} 16. Nxc4 {[%emt 0:00:00]} Be4 {[%emt 0:00:23]} 17. Rfd1 {[%emt 0:00:00]} Nc6 {[%emt 0:00:27]} 18. Qc3 {[%emt 0:00:00]} Ne7 {[%emt 0:01:26]} 19. f3 {[%emt 0:00:00]} Bc6 {[%emt 0:00:04]} 20. Bf2 {[%emt 0:00:00]} Nd5 {[%emt 0:00:09]} 21. Qe1 {[%emt 0:00:00]} Rd8 {[%emt 0:00:35]} 22. Bf1 {[%emt 0:00:00]} Bc5 {[%emt 0:01:21]} 23. e4 {[%emt 0:00:00]} Bb4 {[%emt 0:01:02]} 24. Qe2 {[%emt 0:00:00]} Bb5 {[%emt 0:00:19]} 25. Qc2 {[%emt 0:00:00]} Ne7 {[%emt 0:00:02]} 26. Be1 {[%emt 0:00:00]} Bxe1 {[%emt 0:00:16]} 27. Rxe1 {[%emt 0:00:00]} Qb8 {[%emt 0:00:22]} 28. Ne3 {[%emt 0:00:00]} Nc6 {[%emt 0:00:05]} 29. Bxb5 {[%emt 0:00:00]} axb5 {[%emt 0:00:53]} 30. Qc5 {[%emt 0:00:00]} Nd4 {[%emt 0:00:33]} 31. Rad1 {[%emt 0:00:00]} b6 {[%emt 0:01:19]} 32. axb6 {[%emt 0:00:00]} cxb6 {[%emt 0:00:09]} 33. Qe7 {[%emt 0:00:53]} Qxe5 {[%emt 0:00:30]} 34. Rc1 {[%emt 0:00:01]} Qg5 {[%emt 0:00:13]} 35. Qxg5 {[%emt 0:00:08]} hxg5 {[%emt 0:00:01]} 36. Nc2 {[%emt 0:00:28]} Nxc2 {[%emt 0:00:29]} 37. Rxc2 {[%emt 0:00:01]} Ra2 {[%emt 0:00:02]} 38. Kf2 {[%emt 0:00:05]} Rd4 {[%emt 0:00:26]} 39. Ree2 {[%emt 0:00:13]} Kh7 {[%emt 0:00:10]} 40. Ke3 {[%emt 0:00:06]} Rb4 {[%emt 0:00:01]} 41. Kd3 {[%emt 0:00:01]} Rb3+ {[%emt 0:00:27]} 42. Kd2 {[%emt 0:00:12]} Rbxb2 {[%emt 0:00:04]} 43. Kd3 {[%emt 0:00:00]} Rb3+ {[%emt 0:00:15]} 44. Kd4 {[%emt 0:00:05]} Ra4+ {[%emt 0:00:04]} 45. Ke5 {[%emt 0:00:01]} Rc4 {[%emt 0:00:07]} 46. Ra2 {[%emt 0:00:07]} Rc6 {[%emt 0:00:04]} 47. Rec2 {[%emt 0:00:12]} f6+ {[%emt 0:00:06]} 48. Kd4 {[%emt 0:00:01]} Rb4+ {[%emt 0:00:04]} 49. Kd3 {[%emt 0:00:02]} Rd6+ {[%emt 0:00:14]} 50. Ke3 {[%emt 0:00:01]} e5 {[%emt 0:00:04]} 51. Rab2 {[%emt 0:00:04]} Rdd4 {[%emt 0:00:07]} 52. Rxb4 {[%emt 0:00:01]} Rxb4 {[%emt 0:00:01]} 53. Rc6 {[%emt 0:00:00]} Rb2 {[%emt 0:00:01]} 54. g3 {[%emt 0:00:09]} Rxh2 {[%emt 0:00:01]} 55. Rxb6 {[%emt 0:00:01]} Rb2 {[%emt 0:00:01]} 56. Rb7 {[%emt 0:00:08]} Kg8 {[%emt 0:00:03]} 57. Kd3 {[%emt 0:00:04]} Rb3+ {[%emt 0:00:01]} 58. Ke2 {[%emt 0:00:00]} Kf8 {[%emt 0:00:02]} 59. Kf2 {[%emt 0:00:02]} b4 {[%emt 0:00:17]} 60. Kg2 {[%emt 0:00:00]} g6 {[%emt 0:00:05]} 61. Rb6 {[%emt 0:00:09]} Ke7 {[%emt 0:00:05]} 62. Rb7+ {[%emt 0:00:00]} Kd6 {[%emt 0:00:00]} 63. Rb6+ {[%emt 0:00:00]} Kc5 {[%emt 0:00:01]} 64. Rxf6 {[%emt 0:00:01]} Rd3 {[%emt 0:00:04]} 65. Re6 {[%emt 0:00:34]} b3 {[%emt 0:00:19]} 66. Rxe5+ {[%emt 0:00:01]} Kc4 {[%emt 0:00:01]} 67. Re8 {[%emt 0:00:01]} b2 {[%emt 0:00:01]} 68. Rc8+ {[%emt 0:00:01]} Kb3 {[%emt 0:00:02]} 69. f4 {[%emt 0:00:06]} gxf4 {[%emt 0:00:05]} 70. gxf4 {[%emt 0:00:00]} Rd4 {[%emt 0:00:01]} 0-1

[Event "Polish University-ch Teams 2024"]
[Site "Lublin"]
[Date "2024.02.25"]
[Round "9.22"]
[White "Skurniak, Szymon"]
[Black "Drozdowski, Konrad"]
[Result "0-1"]
[ECO "C47"]
[WhiteElo "2096"]
[BlackElo "2117"]
[Annotator "NA"]
[PlyCount "74"]
[EventDate "2024.02.22"]
[EventType "team-tourn"]
[EventCountry "POL"]
[SourceTitle "playchess.com"]
[Source "ChessBase"]
[SourceQuality "1"]
[TimeControl "900+5"]

1. e4 {[%emt 0:00:04]} e5 {[%emt 0:00:00]} 2. Nf3 {[%emt 0:00:04]} Nf6 {[%emt 0:00:02]} 3. Nc3 {[%emt 0:00:01]} Nc6 {[%emt 0:00:01]} 4. a3 {[%emt 0:00:02]} d5 {[%emt 0:00:06]} 5. Bb5 {[%emt 0:00:01]} Nxe4 {[%emt 0:00:59]} 6. Qe2 {[%emt 0:00:01]} Qd6 {[%emt 0:00:53]} 7. Nxe4 {[%emt 0:00:38]} dxe4 {[%emt 0:00:01]} 8. Qxe4 {[%emt 0:00:03]} Bd7 {[%emt 0:00:02]} 9. O-O {[%emt 0:02:00]} f6 {[%emt 0:02:56]} 10. d4 {[%emt 0:00:34]} f5 {[%emt 0:00:31]} 11. Qe2 {[%emt 0:03:19]} e4 {[%emt 0:00:18]} 12. d5 {[%emt 0:02:21]} Ne7 {[%emt 0:02:25]} 13. Bxd7+ {[%emt 0:00:30]} Qxd7 {[%emt 0:00:38]} 14. Ne5 {[%emt 0:00:20]} Qxd5 {[%emt 0:00:19]} 15. Bf4 {[%emt 0:00:01]} Nc6 {[%emt 0:02:31]} 16. Rad1 {[%emt 0:00:37]} Qe6 {[%emt 0:01:04]} 17. Qb5 {[%emt 0:00:31]} Rc8 {[%emt 0:00:51]} 18. Qxb7 {[%emt 0:02:21]} Nxe5 {[%emt 0:00:03]} 19. Bxe5 {[%emt 0:00:04]} Be7 {[%emt 0:00:12]} 20. Bc3 {[%emt 0:00:32]} O-O {[%emt 0:00:22]} 21. Qxa7 {[%emt 0:00:01]} Bd6 {[%emt 0:00:12]} 22. Rxd6 {[%emt 0:00:12]} Qxd6 {[%emt 0:00:18]} 23. Bb4 {[%emt 0:00:01]} c5 {[%emt 0:00:03]} 24. Bc3 {[%emt 0:00:00]} Rf7 {[%emt 0:00:12]} 25. Qa4 {[%emt 0:00:04]} Qe6 {[%emt 0:00:13]} 26. Re1 {[%emt 0:00:18]} Qd5 {[%emt 0:00:28]} 27. Qa6 {[%emt 0:00:24]} Re8 {[%emt 0:00:12]} 28. Qe2 {[%emt 0:00:06]} f4 {[%emt 0:00:07]} 29. f3 {[%emt 0:00:01]} Rfe7 {[%emt 0:00:10]} 30. Qb5 {[%emt 0:00:07]} h6 {[%emt 0:00:46]} 31. fxe4 {[%emt 0:00:04]} Rxe4 {[%emt 0:00:04]} 32. Qxe8+ {[%emt 0:00:01]} Rxe8 {[%emt 0:00:01]} 33. Rxe8+ {[%emt 0:00:01]} Kf7 {[%emt 0:00:08]} 34. Re2 {[%emt 0:00:19]} g5 {[%emt 0:00:05]} 35. b4 {[%emt 0:00:31]} Qc4 {[%emt 0:00:08]} 36. Re5 {[%emt 0:00:18]} Qxc3 {[%emt 0:00:04]} 37. Rxc5 {[%emt 0:00:03]} Qe1# {[%emt 0:00:01]} 0-1

[Event "Polish University-ch Teams 2024"]
[Site "Lublin"]
[Date "2024.02.25"]
[Round "9.23"]
[White "Paziak, Patryk"]
[Black "Dziendziel, Mateusz"]
[Result "0-1"]
[ECO "B53"]
[WhiteElo "1781"]
[BlackElo "1975"]
[Annotator "NA"]
[PlyCount "144"]
[EventDate "2024.02.22"]
[EventType "team-tourn"]
[EventCountry "POL"]
[SourceTitle "playchess.com"]
[Source "ChessBase"]
[SourceQuality "1"]
[TimeControl "900+5"]

1. e4 {[%emt 0:00:02]} c5 {[%emt 0:00:00]} 2. Nf3 {[%emt 0:00:01]} d6 {[%emt 0:00:01]} 3. d4 {[%emt 0:00:01]} cxd4 {[%emt 0:00:01]} 4. Qxd4 {[%emt 0:00:01]} Nf6 {[%emt 0:00:04]} 5. Bb5+ {[%emt 0:00:19]} Bd7 {[%emt 0:00:09]} 6. Bxd7+ {[%emt 0:00:07]} Qxd7 {[%emt 0:00:14]} 7. O-O {[%emt 0:00:26]} Nc6 {[%emt 0:00:01]} 8. Qd3 {[%emt 0:00:01]} g6 {[%emt 0:00:10]} 9. c4 {[%emt 0:00:01]} Bg7 {[%emt 0:00:07]} 10. Nc3 {[%emt 0:00:01]} O-O {[%emt 0:00:05]} 11. h3 {[%emt 0:00:01]} Rac8 {[%emt 0:00:06]} 12. Bf4 {[%emt 0:00:41]} Rfd8 {[%emt 0:00:39]} 13. Rac1 {[%emt 0:00:07]} b6 {[%emt 0:00:22]} 14. Rfd1 {[%emt 0:00:02]} Qb7 {[%emt 0:00:08]} 15. b3 {[%emt 0:00:21]} Nh5 {[%emt 0:01:32]} 16. Be3 {[%emt 0:00:46]} Nb4 {[%emt 0:00:12]} 17. Qb1 {[%emt 0:00:03]} Na6 {[%emt 0:00:54]} 18. Nd5 {[%emt 0:02:09]} Nc5 {[%emt 0:00:40]} 19. Bg5 {[%emt 0:00:02]} Re8 {[%emt 0:02:01]} 20. b4 {[%emt 0:00:38]} Ne6 {[%emt 0:00:09]} 21. Be3 {[%emt 0:00:24]} Nf6 {[%emt 0:00:33]} 22. Qd3 {[%emt 0:01:04]} Nd7 {[%emt 0:00:24]} 23. Rc2 {[%emt 0:00:55]} Nc7 {[%emt 0:02:12]} 24. Rdc1 {[%emt 0:00:29]} Na6 {[%emt 0:00:24]} 25. a3 {[%emt 0:00:08]} Kf8 {[%emt 0:00:42]} 26. Qd2 {[%emt 0:01:18]} Kg8 {[%emt 0:00:40]} 27. Bg5 {[%emt 0:00:09]} Nf8 {[%emt 0:00:34]} 28. Bh6 {[%emt 0:00:22]} Bh8 {[%emt 0:00:46]} 29. Qf4 {[%emt 0:01:02]} Ne6 {[%emt 0:00:56]} 30. Qh4 {[%emt 0:01:31]} Bg7 {[%emt 0:00:34]} 31. Bxg7 {[%emt 0:00:44]} Kxg7 {[%emt 0:00:03]} 32. Qg3 {[%emt 0:00:12]} Nac7 {[%emt 0:00:44]} 33. Nh4 {[%emt 0:00:51]} Kf8 {[%emt 0:00:52]} 34. Qc3 {[%emt 0:00:01]} Kg8 {[%emt 0:00:18]} 35. Qg3 {[%emt 0:00:02]} Kf8 {[%emt 0:00:09]} 36. Qe3 {[%emt 0:00:01]} Kg7 {[%emt 0:00:12]} 37. f4 {[%emt 0:00:01]} Nxd5 {[%emt 0:00:09]} 38. exd5 {[%emt 0:00:01]} Nf8 {[%emt 0:00:06]} 39. Qd4+ {[%emt 0:00:18]} Kg8 {[%emt 0:00:04]} 40. f5 {[%emt 0:00:14]} Nd7 {[%emt 0:00:05]} 41. fxg6 {[%emt 0:00:01]} hxg6 {[%emt 0:00:04]} 42. Rc3 {[%emt 0:00:51]} Ne5 {[%emt 0:00:05]} 43. Rg3 {[%emt 0:00:53]} b5 {[%emt 0:00:06]} 44. c5 {[%emt 0:00:07]} a5 {[%emt 0:00:12]} 45. c6 {[%emt 0:00:10]} Qc7 {[%emt 0:00:06]} 46. Nf5 {[%emt 0:00:20]} e6 {[%emt 0:00:06]} 47. Nh6+ {[%emt 0:00:28]} Kg7 {[%emt 0:00:03]} 48. Ng4 {[%emt 0:00:13]} exd5 {[%emt 0:00:04]} 49. Qxd5 {[%emt 0:00:14]} axb4 {[%emt 0:00:02]} 50. axb4 {[%emt 0:00:01]} Qa7+ {[%emt 0:00:06]} 51. Kh2 {[%emt 0:00:03]} Qe7 {[%emt 0:00:13]} 52. Ne3 {[%emt 0:00:05]} Qe6 {[%emt 0:00:07]} 53. Qe4 {[%emt 0:00:07]} Red8 {[%emt 0:00:04]} 54. Rf1 {[%emt 0:00:09]} d5 {[%emt 0:00:05]} 55. Nf5+ {[%emt 0:00:02]} Kg8 {[%emt 0:00:05]} 56. Qh4 {[%emt 0:00:07]} Rxc6 {[%emt 0:00:06]} 57. Ne7+ {[%emt 0:00:03]} Kg7 {[%emt 0:00:08]} 58. Nxc6 {[%emt 0:00:01]} Nxc6 {[%emt 0:00:01]} 59. Rgf3 {[%emt 0:00:07]} Rd7 {[%emt 0:00:02]} 60. Qf4 {[%emt 0:00:06]} d4 {[%emt 0:00:02]} 61. Rc1 {[%emt 0:00:13]} Ne5 {[%emt 0:00:01]} 62. Rg3 {[%emt 0:00:09]} Nc6 {[%emt 0:00:04]} 63. Rc5 {[%emt 0:00:05]} f6 {[%emt 0:00:06]} 64. Rxb5 {[%emt 0:00:04]} Ne5 {[%emt 0:00:01]} 65. Rb8 {[%emt 0:00:05]} d3 {[%emt 0:00:03]} 66. Qh4 {[%emt 0:00:03]} Nf7 {[%emt 0:00:01]} 67. Qf4 {[%emt 0:00:09]} d2 {[%emt 0:00:03]} 68. Rxg6+ {[%emt 0:00:05]} Kxg6 {[%emt 0:00:06]} 69. Rg8+ {[%emt 0:00:03]} Kh7 {[%emt 0:00:01]} 70. Rg3 {[%emt 0:00:06]} Qe5 {[%emt 0:00:04]} 71. Qh4+ {[%emt 0:00:02]} Nh6 {[%emt 0:00:00]} 72. Qc4 {[%emt 0:00:16]} d1=Q {[%emt 0:00:05]} 0-1

[Event "Polish University-ch Teams 2024"]
[Site "Lublin"]
[Date "2024.02.25"]
[Round "9.24"]
[White "Pisarek, Elzbieta"]
[Black "Rykala, Monika"]
[Result "0-1"]
[ECO "B51"]
[WhiteElo "1754"]
[BlackElo "1893"]
[Annotator "NA"]
[PlyCount "110"]
[EventDate "2024.02.22"]
[EventType "team-tourn"]
[EventCountry "POL"]
[SourceTitle "playchess.com"]
[Source "ChessBase"]
[SourceQuality "1"]
[TimeControl "900+5"]

1. e4 {[%emt 0:00:01]} c5 {[%emt 0:00:05]} 2. Nf3 {[%emt 0:00:01]} Nc6 {[%emt 0:00:01]} 3. Bb5 {[%emt 0:00:05]} d6 {[%emt 0:00:41]} 4. O-O {[%emt 0:00:05]} e6 {[%emt 0:00:17]} 5. c3 {[%emt 0:00:35]} Qb6 {[%emt 0:00:35]} 6. Bxc6+ {[%emt 0:00:24]} Qxc6 {[%emt 0:00:01]} 7. Re1 {[%emt 0:00:18]} Be7 {[%emt 0:00:39]} 8. d4 {[%emt 0:00:11]} d5 {[%emt 0:00:02]} 9. e5 {[%emt 0:02:56]} c4 {[%emt 0:02:40]} 10. a4 {[%emt 0:00:37]} Bd7 {[%emt 0:00:13]} 11. Be3 {[%emt 0:01:24]} Rb8 {[%emt 0:01:17]} 12. Qc2 {[%emt 0:00:52]} Qb6 {[%emt 0:00:58]} 13. Nbd2 {[%emt 0:01:00]} Qd8 {[%emt 0:00:31]} 14. Nf1 {[%emt 0:00:29]} h5 {[%emt 0:00:29]} 15. Qd2 {[%emt 0:00:28]} Nh6 {[%emt 0:00:10]} 16. Bg5 {[%emt 0:00:56]} Nf5 {[%emt 0:00:30]} 17. Ng3 {[%emt 0:00:40]} Bxg5 {[%emt 0:00:20]} 18. Qxg5 {[%emt 0:00:11]} Qxg5 {[%emt 0:00:05]} 19. Nxg5 {[%emt 0:00:01]} Nxg3 {[%emt 0:00:22]} 20. hxg3 {[%emt 0:00:02]} Ke7 {[%emt 0:00:49]} 21. Nf3 {[%emt 0:00:10]} b6 {[%emt 0:00:14]} 22. Re2 {[%emt 0:00:59]} a6 {[%emt 0:00:08]} 23. Kf1 {[%emt 0:00:18]} Rhc8 {[%emt 0:00:02]} 24. Ke1 {[%emt 0:00:03]} Rc7 {[%emt 0:00:01]} 25. Kd1 {[%emt 0:00:25]} b5 {[%emt 0:00:09]} 26. axb5 {[%emt 0:00:49]} axb5 {[%emt 0:00:01]} 27. Rc2 {[%emt 0:01:49]} b4 {[%emt 0:00:02]} 28. Rcc1 {[%emt 0:00:01]} Rcb7 {[%emt 0:00:46]} 29. Nd2 {[%emt 0:00:10]} bxc3 {[%emt 0:00:39]} 30. bxc3 {[%emt 0:00:06]} Rb2 {[%emt 0:00:02]} 31. Rab1 {[%emt 0:00:11]} Ba4+ {[%emt 0:00:12]} 32. Ke1 {[%emt 0:00:10]} Bd7 {[%emt 0:00:16]} 33. Kd1 {[%emt 0:00:11]} f6 {[%emt 0:00:09]} 34. exf6+ {[%emt 0:00:05]} gxf6 {[%emt 0:00:00]} 35. Rxb2 {[%emt 0:00:14]} Rxb2 {[%emt 0:00:02]} 36. Rb1 {[%emt 0:00:04]} Ba4+ {[%emt 0:00:13]} 37. Ke1 {[%emt 0:00:02]} Rc2 {[%emt 0:00:12]} 38. Rb7+ {[%emt 0:00:12]} Bd7 {[%emt 0:00:01]} 39. Nb1 {[%emt 0:00:20]} e5 {[%emt 0:00:19]} 40. dxe5 {[%emt 0:00:13]} fxe5 {[%emt 0:00:01]} 41. Kf1 {[%emt 0:00:23]} Kd6 {[%emt 0:00:06]} 42. Ke1 {[%emt 0:00:09]} Bc6 {[%emt 0:00:03]} 43. Rb6 {[%emt 0:00:03]} Kc5 {[%emt 0:00:02]} 44. Rb8 {[%emt 0:00:02]} d4 {[%emt 0:00:14]} 45. cxd4+ {[%emt 0:00:02]} exd4 {[%emt 0:00:00]} 46. Nd2 {[%emt 0:00:18]} Bxg2 {[%emt 0:01:03]} 47. Rc8+ {[%emt 0:00:08]} Kb4 {[%emt 0:00:02]} 48. Rd8 {[%emt 0:00:02]} d3 {[%emt 0:00:06]} 49. Kd1 {[%emt 0:00:05]} Ra2 {[%emt 0:00:54]} 50. Kc1 {[%emt 0:00:07]} Rc2+ {[%emt 0:01:06]} 51. Kd1 {[%emt 0:00:02]} Kc3 {[%emt 0:00:12]} 52. Nb1+ {[%emt 0:00:02]} Kb2 {[%emt 0:00:57]} 53. Rb8+ {[%emt 0:00:01]} Ka2 {[%emt 0:00:02]} 54. Nd2 {[%emt 0:00:13]} c3 {[%emt 0:00:03]} 55. Nc4 {[%emt 0:00:07]} Bf3+ {[%emt 0:00:04]} 0-1